[Event "Austrian Championship Girls-U14 2024"]
[Site "Fuerstenfeld"]
[Date "2024.05.30"]
[Round "1.1"]
[White "Brunner, Josephina Akiko"]
[Black "Lahl, Sophie"]
[Result "1-0"]
[ECO "B72"]
[WhiteElo "1744"]
[BlackElo "1519"]
[Annotator "NA RC"]
[PlyCount "99"]
[EventDate "2024.05.28"]
[EventType "swiss"]
[EventCountry "AUT"]
[SourceTitle "playchess.com"]
[Source "ChessBase"]
[SourceQuality "1"]
[TimeControl "5400+30"]

1. e4 {[%emt 0:00:05]} c5 {[%emt 0:00:05]} 2. Nf3 {[%emt 0:00:15]} d6 {[%emt 0:00:09]} 3. d4 {[%emt 0:00:19]} cxd4 {[%emt 0:00:13]} 4. Nxd4 {[%emt 0:00:09]} Nf6 {[%emt 0:00:29]} 5. Nc3 {[%emt 0:00:39]} g6 {[%emt 0:02:28]} 6. Be3 {[%emt 0:02:53]} Bg7 {[%emt 0:00:13]} 7. h3 {[%emt 0:03:41]} Bd7 {[%emt 0:02:04]} 8. Qd2 {[%emt 0:02:50]} O-O {[%emt 0:00:38]} 9. O-O-O {[%emt 0:11:26]} Nc6 {[%emt 0:00:11]} 10. f3 {[%emt 0:19:43]} Qa5 {[%emt 0:03:10]} 11. Nb3 {[%emt 0:02:44]} Qd8 {[%emt 0:00:41]} 12. g4 {[%emt 0:07:29]} Na5 {[%emt 0:00:12]} 13. h4 {[%emt 0:04:50]} Nxb3+ {[%emt 0:00:07]} 14. cxb3 {[%emt 0:00:52]} Qa5 {[%emt 0:01:19]} 15. Kb1 {[%emt 0:00:34]} b5 {[%emt 0:00:44]} 16. Nd5 {[%emt 0:00:29]} Qxd2 {[%emt 0:00:27]} 17. Nxe7+ {[%emt 0:00:17]} Kh8 {[%emt 0:00:34]} 18. Rxd2 {[%emt 0:00:32]} Rfe8 {[%emt 0:00:24]} 19. Nd5 {[%emt 0:00:07]} Nxd5 {[%emt 0:01:17]} 20. Rxd5 {[%emt 0:00:15]} Re6 {[%emt 0:00:42]} 21. Bxb5 {[%emt 0:00:51]} Bxb5 {[%emt 0:00:44]} 22. Rxb5 {[%emt 0:00:06]} Rf6 {[%emt 0:01:05]} 23. Rf1 {[%emt 0:00:51]} Kg8 {[%emt 0:01:24]} 24. g5 {[%emt 0:01:29]} Re6 {[%emt 0:00:29]} 25. Rd1 {[%emt 0:01:09]} f6 {[%emt 0:00:39]} 26. Rb7 {[%emt 0:01:54]} fxg5 {[%emt 0:00:26]} 27. hxg5 {[%emt 0:02:42]} Rf8 {[%emt 0:02:44]} 28. Bxa7 {[%emt 0:10:44]} Rxf3 {[%emt 0:00:09]} 29. Bd4 {[%emt 0:09:21]} Bxd4 {[%emt 0:00:39]} 30. Rxd4 {[%emt 0:00:02]} Rf4 {[%emt 0:00:40]} 31. a4 {[%emt 0:05:30]} Rfxe4 {[%emt 0:00:14]} 32. Rxe4 {[%emt 0:00:04]} Rxe4 {[%emt 0:00:04]} 33. a5 {[%emt 0:00:09]} Re5 {[%emt 0:04:35]} 34. a6 {[%emt 0:00:06]} Rxg5 {[%emt 0:00:29]} 35. a7 {[%emt 0:00:14]} Ra5 {[%emt 0:00:02]} 36. Rb8+ {[%emt 0:00:06]} Kg7 {[%emt 0:00:04]} 37. a8=Q {[%emt 0:00:06]} Rxa8 {[%emt 0:00:08]} 38. Rxa8 {[%emt 0:00:03]} h5 {[%emt 0:00:08]} 39. Kc2 {[%emt 0:01:33]} g5 {[%emt 0:00:17]} 40. Kd2 {[%emt 0:01:35]} h4 {[%emt 0:00:51]} 41. Ke2 {[%emt 0:00:15]} Kf6 {[%emt 0:01:23]} 42. Kf3 {[%emt 0:02:53]} d5 {[%emt 0:00:36]} 43. Rf8+ {[%emt 0:00:16]} Ke5 {[%emt 0:00:44]} 44. Kg4 {[%emt 0:01:44]} Kd4 {[%emt 0:00:32]} 45. Kxg5 {[%emt 0:00:15]} h3 {[%emt 0:00:24]} 46. Rh8 {[%emt 0:00:05]} h2 {[%emt 0:00:02]} 47. Rxh2 {[%emt 0:00:04]} Kc5 {[%emt 0:00:06]} 48. Kf4 {[%emt 0:00:09]} Kb4 {[%emt 0:00:24]} 49. Ke5 {[%emt 0:00:06]} Kxb3 {[%emt 0:00:08]} 50. Kxd5 {[%emt 0:00:05]} 1-0

[Event "Austrian Championship Girls-U14 2024"]
[Site "Fuerstenfeld"]
[Date "2024.05.30"]
[Round "1.2"]
[White "Huber, Valentina"]
[Black "Turdiyeva, Maryam"]
[Result "0-1"]
[ECO "A48"]
[WhiteElo "1404"]
[BlackElo "1682"]
[Annotator "NA RC"]
[PlyCount "86"]
[EventDate "2024.05.28"]
[EventType "swiss"]
[EventCountry "AUT"]
[SourceTitle "playchess.com"]
[Source "ChessBase"]
[SourceQuality "1"]
[TimeControl "5400+30"]

1. d4 {[%emt 0:00:04]} d6 {[%emt 0:00:09]} 2. Bf4 {[%emt 0:00:18]} g6 {[%emt 0:00:15]} 3. e3 {[%emt 0:00:29]} Bg7 {[%emt 0:00:21]} 4. Nf3 {[%emt 0:00:46]} Nf6 {[%emt 0:00:21]} 5. Be2 {[%emt 0:00:50]} Nbd7 {[%emt 0:00:51]} 6. Nbd2 {[%emt 0:00:43]} O-O {[%emt 0:01:27]} 7. c3 {[%emt 0:01:26]} c5 {[%emt 0:01:13]} 8. Qc2 {[%emt 0:02:01]} a6 {[%emt 0:08:34]} 9. O-O {[%emt 0:06:40]} b6 {[%emt 0:02:59]} 10. e4 {[%emt 0:03:52]} Bb7 {[%emt 0:05:35]} 11. d5 {[%emt 0:02:16]} Rc8 {[%emt 0:04:33]} 12. Rfe1 {[%emt 0:04:55]} b5 {[%emt 0:03:53]} 13. c4 {[%emt 0:03:54]} Qb6 {[%emt 0:09:11]} 14. Bg5 {[%emt 0:06:10]} Rfe8 {[%emt 0:02:39]} 15. Bd3 {[%emt 0:04:40]} e6 {[%emt 0:07:43]} 16. Bxf6 {[%emt 0:05:04]} Bxf6 {[%emt 0:02:53]} 17. Rab1 {[%emt 0:05:11]} exd5 {[%emt 0:09:42]} 18. exd5 {[%emt 0:04:30]} Bg7 {[%emt 0:05:49]} 19. Rxe8+ {[%emt 0:06:22]} Rxe8 {[%emt 0:00:13]} 20. Re1 {[%emt 0:03:17]} Rxe1+ {[%emt 0:00:59]} 21. Nxe1 {[%emt 0:00:13]} Ne5 {[%emt 0:01:40]} 22. b3 {[%emt 0:02:46]} Qa5 {[%emt 0:16:54]} 23. h3 {[%emt 0:07:41]} Bc8 {[%emt 0:01:32]} 24. Ndf3 {[%emt 0:03:57]} Nxd3 {[%emt 0:01:54]} 25. Nxd3 {[%emt 0:00:16]} Bf5 {[%emt 0:00:39]} 26. Nfe1 {[%emt 0:02:25]} Bc3 {[%emt 0:00:54]} 27. Qe2 {[%emt 0:02:08]} Bxe1 {[%emt 0:03:58]} 28. Nxe1 {[%emt 0:00:19]} Bb1 {[%emt 0:00:46]} 29. a3 {[%emt 0:07:59]} bxc4 {[%emt 0:00:57]} 30. bxc4 {[%emt 0:01:42]} Qxa3 {[%emt 0:00:26]} 31. Qe8+ {[%emt 0:01:27]} Kg7 {[%emt 0:00:05]} 32. Qc6 {[%emt 0:01:08]} Qc1 {[%emt 0:00:51]} 33. Kh2 {[%emt 0:05:49]} Qxe1 {[%emt 0:00:19]} 34. Qxd6 {[%emt 0:00:46]} Qxf2 {[%emt 0:00:34]} 35. Qxa6 {[%emt 0:01:07]} Be4 {[%emt 0:01:10]} 36. Qa1+ {[%emt 0:01:55]} f6 {[%emt 0:00:45]} 37. Qg1 {[%emt 0:01:17]} Qxg1+ {[%emt 0:00:07]} 38. Kxg1 {[%emt 0:00:10]} Kf7 {[%emt 0:00:15]} 39. Kf2 {[%emt 0:00:11]} Bd3 {[%emt 0:00:09]} 40. Ke3 {[%emt 0:00:16]} Bxc4 {[%emt 0:00:07]} 41. Kd2 {[%emt 0:00:39]} Bxd5 {[%emt 0:00:07]} 42. g4 {[%emt 0:00:13]} Ke6 {[%emt 0:00:10]} 43. Kc3 {[%emt 0:00:14]} Ke5 {[%emt 0:00:06]} 0-1

[Event "Austrian Championship Girls-U14 2024"]
[Site "Fuerstenfeld"]
[Date "2024.05.30"]
[Round "1.3"]
[White "Huber, Elisa"]
[Black "Wang, Yihan"]
[Result "1/2-1/2"]
[ECO "D00"]
[WhiteElo "1633"]
[BlackElo "1516"]
[Annotator "NA RC"]
[PlyCount "76"]
[EventDate "2024.05.28"]
[EventType "swiss"]
[EventCountry "AUT"]
[SourceTitle "playchess.com"]
[Source "ChessBase"]
[SourceQuality "1"]
[TimeControl "5400+30"]

1. d4 {[%emt 0:00:01]} d5 {[%emt 0:00:09]} 2. Bf4 {[%emt 0:00:08]} Nf6 {[%emt 0:00:16]} 3. e3 {[%emt 0:00:13]} e6 {[%emt 0:00:22]} 4. c3 {[%emt 0:00:25]} Bd6 {[%emt 0:00:46]} 5. Bg3 {[%emt 0:00:16]} O-O {[%emt 0:00:40]} 6. Nd2 {[%emt 0:00:40]} b6 {[%emt 0:01:00]} 7. Ngf3 {[%emt 0:01:01]} Bb7 {[%emt 0:01:26]} 8. Qc2 {[%emt 0:02:35]} Nbd7 {[%emt 0:02:37]} 9. Bd3 {[%emt 0:02:48]} Qe7 {[%emt 0:02:59]} 10. Bh4 {[%emt 0:09:26]} g6 {[%emt 0:03:47]} 11. Bg5 {[%emt 0:02:43]} Kg7 {[%emt 0:04:12]} 12. h4 {[%emt 0:12:00]} h6 {[%emt 0:06:32]} 13. Bxf6+ {[%emt 0:00:45]} Nxf6 {[%emt 0:01:08]} 14. Rg1 {[%emt 0:07:06]} Rg8 {[%emt 0:01:46]} 15. g4 {[%emt 0:02:08]} Kf8 {[%emt 0:04:01]} 16. g5 {[%emt 0:03:02]} hxg5 {[%emt 0:01:38]} 17. Rxg5 {[%emt 0:03:10]} c5 {[%emt 0:05:09]} 18. dxc5 {[%emt 0:02:45]} bxc5 {[%emt 0:00:59]} 19. b3 {[%emt 0:04:51]} Rc8 {[%emt 0:03:53]} 20. c4 {[%emt 0:03:24]} Bc6 {[%emt 0:03:53]} 21. e4 {[%emt 0:09:14]} Bf4 {[%emt 0:05:04]} 22. Rg1 {[%emt 0:04:20]} Bxd2+ {[%emt 0:01:26]} 23. Nxd2 {[%emt 0:00:54]} dxe4 {[%emt 0:02:25]} 24. Nxe4 {[%emt 0:02:39]} Nxe4 {[%emt 0:01:09]} 25. Bxe4 {[%emt 0:00:10]} Qxh4 {[%emt 0:01:10]} 26. Bxc6 {[%emt 0:00:49]} Rxc6 {[%emt 0:00:16]} 27. O-O-O {[%emt 0:04:05]} Qf4+ {[%emt 0:01:54]} 28. Kb1 {[%emt 0:01:18]} Rd6 {[%emt 0:00:52]} 29. Rxd6 {[%emt 0:01:57]} Qxd6 {[%emt 0:00:13]} 30. Rd1 {[%emt 0:00:17]} Qc7 {[%emt 0:01:03]} 31. Qd2 {[%emt 0:03:51]} Ke7 {[%emt 0:01:38]} 32. Qg5+ {[%emt 0:00:48]} f6 {[%emt 0:01:06]} 33. Qh6 {[%emt 0:00:58]} Kf7 {[%emt 0:01:15]} 34. Qd2 {[%emt 0:00:30]} Ke7 {[%emt 0:03:04]} 35. Qh6 {[%emt 0:01:08]} Ke8 {[%emt 0:01:04]} 36. Qe3 {[%emt 0:04:41]} Kf7 {[%emt 0:04:36]} 37. Qd2 {[%emt 0:00:55]} Ke7 {[%emt 0:00:18]} 38. Qh6 {[%emt 0:00:25]} Ke8 {[%emt 0:00:40]} 1/2-1/2

[Event "Austrian Championship Girls-U14 2024"]
[Site "Fuerstenfeld"]
[Date "2024.05.30"]
[Round "2.1"]
[White "Wiessner, Elisabeth"]
[Black "Brunner, Josephina Akiko"]
[Result "1/2-1/2"]
[ECO "B28"]
[WhiteElo "1572"]
[BlackElo "1744"]
[Annotator "NA RC"]
[PlyCount "136"]
[EventDate "2024.05.28"]
[EventType "swiss"]
[EventCountry "AUT"]
[SourceTitle "playchess.com"]
[Source "ChessBase"]
[SourceQuality "1"]
[TimeControl "5400+30"]

1. e4 {[%emt 0:00:02]} c5 {[%emt 0:00:23]} 2. Nf3 {[%emt 0:00:40]} a6 {[%emt 0:01:10]} 3. g3 {[%emt 0:00:55]} Nc6 {[%emt 0:01:11]} 4. Bg2 {[%emt 0:00:43]} g6 {[%emt 0:11:50]} 5. O-O {[%emt 0:03:20]} Bg7 {[%emt 0:01:10]} 6. c3 {[%emt 0:03:52]} e5 {[%emt 0:06:31]} 7. Na3 {[%emt 0:05:50]} Nf6 {[%emt 0:08:04]} 8. d3 {[%emt 0:06:05]} d5 {[%emt 0:22:25]} 9. Qe2 {[%emt 0:18:42]} d4 {[%emt 0:11:24]} 10. cxd4 {[%emt 0:11:14]} cxd4 {[%emt 0:04:02]} 11. Bd2 {[%emt 0:08:53]} O-O {[%emt 0:03:34]} 12. Nc4 {[%emt 0:06:46]} Nd7 {[%emt 0:06:17]} 13. Bh3 {[%emt 0:06:28]} Nb6 {[%emt 0:02:53]} 14. Nxb6 {[%emt 0:03:14]} Qxb6 {[%emt 0:00:18]} 15. Bxc8 {[%emt 0:01:06]} Raxc8 {[%emt 0:00:11]} 16. Rab1 {[%emt 0:01:38]} Na7 {[%emt 0:01:53]} 17. Ne1 {[%emt 0:05:39]} Rc6 {[%emt 0:03:20]} 18. f4 {[%emt 0:02:49]} Nb5 {[%emt 0:04:59]} 19. fxe5 {[%emt 0:01:04]} Bxe5 {[%emt 0:01:18]} 20. Bf4 {[%emt 0:00:41]} Bxf4 {[%emt 0:00:07]} 21. Rxf4 {[%emt 0:00:40]} Nc3 {[%emt 0:00:14]} 22. bxc3 {[%emt 0:00:46]} Qxb1 {[%emt 0:00:12]} 23. cxd4 {[%emt 0:00:22]} Qb6 {[%emt 0:01:41]} 24. e5 {[%emt 0:00:49]} Rfc8 {[%emt 0:01:20]} 25. Qf2 {[%emt 0:01:06]} Qc7 {[%emt 0:00:49]} 26. Re4 {[%emt 0:01:37]} Qd7 {[%emt 0:00:41]} 27. Nf3 {[%emt 0:02:15]} Rc1+ {[%emt 0:00:41]} 28. Kg2 {[%emt 0:00:26]} R1c2 {[%emt 0:00:24]} 29. Re2 {[%emt 0:00:14]} Rxe2 {[%emt 0:00:09]} 30. Qxe2 {[%emt 0:00:03]} Qd5 {[%emt 0:00:20]} 31. Qd2 {[%emt 0:01:11]} Kg7 {[%emt 0:01:11]} 32. Kf2 {[%emt 0:00:55]} Rf8 {[%emt 0:00:22]} 33. Qg5 {[%emt 0:02:04]} Qxa2+ {[%emt 0:00:13]} 34. Ke3 {[%emt 0:00:25]} f6 {[%emt 0:00:44]} 35. exf6+ {[%emt 0:00:28]} Rxf6 {[%emt 0:00:07]} 36. Qc5 {[%emt 0:01:34]} Qe6+ {[%emt 0:02:10]} 37. Ne5 {[%emt 0:00:29]} Qf5 {[%emt 0:00:58]} 38. Qc2 {[%emt 0:02:50]} b5 {[%emt 0:02:33]} 39. Qc7+ {[%emt 0:01:05]} Kh6 {[%emt 0:00:57]} 40. Qc2 {[%emt 0:00:28]} a5 {[%emt 0:00:23]} 41. h4 {[%emt 0:00:49]} Qh3 {[%emt 0:00:36]} 42. Ke4 {[%emt 0:00:34]} Qh1+ {[%emt 0:00:46]} 43. Ke3 {[%emt 0:00:15]} Qe1+ {[%emt 0:00:06]} 44. Qe2 {[%emt 0:00:11]} Qxg3+ {[%emt 0:00:10]} 45. Kd2 {[%emt 0:00:24]} Rf2 {[%emt 0:00:06]} 46. Ng4+ {[%emt 0:00:30]} Qxg4 {[%emt 0:00:07]} 47. Qxf2 {[%emt 0:00:09]} a4 {[%emt 0:00:27]} 48. Qf8+ {[%emt 0:00:29]} Kh5 {[%emt 0:00:18]} 49. Qc5+ {[%emt 0:00:23]} Kxh4 {[%emt 0:00:07]} 50. Qxb5 {[%emt 0:01:08]} Qxd4 {[%emt 0:00:08]} 51. Qb1 {[%emt 0:00:55]} Qf2+ {[%emt 0:00:26]} 52. Kc3 {[%emt 0:00:10]} Qc5+ {[%emt 0:00:16]} 53. Kd2 {[%emt 0:00:13]} a3 {[%emt 0:01:54]} 54. Qh1+ {[%emt 0:00:30]} Kg5 {[%emt 0:00:17]} 55. Qg2+ {[%emt 0:00:21]} Kf6 {[%emt 0:00:23]} 56. Qf3+ {[%emt 0:00:21]} Qf5 {[%emt 0:00:35]} 57. Qc6+ {[%emt 0:00:18]} Kg7 {[%emt 0:00:25]} 58. Qc3+ {[%emt 0:00:31]} Qf6 {[%emt 0:00:49]} 59. Qxa3 {[%emt 0:00:13]} Qf2+ {[%emt 0:00:24]} 60. Kd1 {[%emt 0:00:16]} Qf1+ {[%emt 0:00:33]} 61. Kd2 {[%emt 0:00:13]} Qf4+ {[%emt 0:00:33]} 62. Kd1 {[%emt 0:00:14]} Qf1+ {[%emt 0:00:37]} 63. Kd2 {[%emt 0:00:06]} Qf2+ {[%emt 0:01:30]} 64. Kd1 {[%emt 0:00:06]} h5 {[%emt 0:01:11]} 65. Qe7+ {[%emt 0:00:42]} Kh6 {[%emt 0:00:14]} 66. Qe5 {[%emt 0:00:54]} Qg1+ {[%emt 0:00:17]} 67. Ke2 {[%emt 0:01:02]} Qg4+ {[%emt 0:00:20]} 68. Ke1 {[%emt 0:00:21]} Qg1+ {[%emt 0:00:41]} 1/2-1/2

[Event "Austrian Championship Girls-U14 2024"]
[Site "Fuerstenfeld"]
[Date "2024.05.30"]
[Round "2.2"]
[White "Turdiyeva, Maryam"]
[Black "Aboulenein-Djamshidian, Kimia"]
[Result "1/2-1/2"]
[ECO "D02"]
[WhiteElo "1682"]
[BlackElo "1547"]
[Annotator "NA RC"]
[PlyCount "147"]
[EventDate "2024.05.28"]
[EventType "swiss"]
[EventCountry "AUT"]
[SourceTitle "playchess.com"]
[Source "ChessBase"]
[SourceQuality "1"]
[TimeControl "5400+30"]

1. Nf3 {[%emt 0:00:03]} d5 {[%emt 0:00:40]} 2. g3 {[%emt 0:00:10]} Bg4 {[%emt 0:01:55]} 3. Bg2 {[%emt 0:00:18]} Nf6 {[%emt 0:01:17]} 4. d4 {[%emt 0:00:34]} e6 {[%emt 0:00:29]} 5. Nbd2 {[%emt 0:01:42]} c5 {[%emt 0:03:52]} 6. O-O {[%emt 0:01:11]} Nc6 {[%emt 0:02:48]} 7. Nb3 {[%emt 0:04:12]} cxd4 {[%emt 0:06:13]} 8. Nbxd4 {[%emt 0:02:45]} Nxd4 {[%emt 0:06:48]} 9. Qxd4 {[%emt 0:03:01]} Be7 {[%emt 0:06:48]} 10. Bg5 {[%emt 0:03:36]} Bf5 {[%emt 0:03:29]} 11. c3 {[%emt 0:01:48]} O-O {[%emt 0:00:50]} 12. Nh4 {[%emt 0:09:42]} Be4 {[%emt 0:07:23]} 13. f3 {[%emt 0:03:40]} Bg6 {[%emt 0:06:52]} 14. Nxg6 {[%emt 0:00:38]} hxg6 {[%emt 0:00:05]} 15. Qh4 {[%emt 0:07:54]} Qb6+ {[%emt 0:04:09]} 16. e3 {[%emt 0:14:17]} Qxb2 {[%emt 0:03:29]} 17. Rab1 {[%emt 0:05:36]} Qxa2 {[%emt 0:03:07]} 18. Rxb7 {[%emt 0:00:29]} Qa3 {[%emt 0:02:35]} 19. Kh1 {[%emt 0:16:03]} Rab8 {[%emt 0:01:45]} 20. Rxb8 {[%emt 0:09:53]} Rxb8 {[%emt 0:00:29]} 21. e4 {[%emt 0:01:12]} dxe4 {[%emt 0:05:16]} 22. fxe4 {[%emt 0:00:27]} Re8 {[%emt 0:02:46]} 23. Qf4 {[%emt 0:02:22]} Rf8 {[%emt 0:01:49]} 24. c4 {[%emt 0:01:56]} Nh5 {[%emt 0:03:11]} 25. Bxe7 {[%emt 0:01:33]} Qxe7 {[%emt 0:00:25]} 26. Qf2 {[%emt 0:00:41]} Nf6 {[%emt 0:01:29]} 27. Ra1 {[%emt 0:00:51]} Rd8 {[%emt 0:02:11]} 28. e5 {[%emt 0:03:58]} Ng4 {[%emt 0:02:41]} 29. Qf4 {[%emt 0:00:57]} Nh6 {[%emt 0:01:19]} 30. Bf3 {[%emt 0:01:09]} Qc5 {[%emt 0:00:59]} 31. g4 {[%emt 0:01:20]} Rd4 {[%emt 0:02:17]} 32. Qg5 {[%emt 0:00:52]} Qxc4 {[%emt 0:00:54]} 33. Rc1 {[%emt 0:00:51]} Qd3 {[%emt 0:01:52]} 34. Kg2 {[%emt 0:00:27]} Nxg4 {[%emt 0:08:37]} 35. Rc8+ {[%emt 0:00:29]} Kh7 {[%emt 0:00:30]} 36. Bxg4 {[%emt 0:00:29]} Qe4+ {[%emt 0:00:26]} 37. Bf3 {[%emt 0:00:24]} Qf5 {[%emt 0:01:31]} 38. Qxf5 {[%emt 0:00:35]} gxf5 {[%emt 0:00:13]} 39. Rc7 {[%emt 0:00:15]} a5 {[%emt 0:01:48]} 40. Rxf7 {[%emt 0:00:22]} a4 {[%emt 0:00:28]} 41. Ra7 {[%emt 0:00:16]} Rb4 {[%emt 0:02:53]} 42. Bc6 {[%emt 0:01:15]} Rb2+ {[%emt 0:00:44]} 43. Kg3 {[%emt 0:00:16]} Re2 {[%emt 0:00:30]} 44. Rxa4 {[%emt 0:00:26]} Rxe5 {[%emt 0:00:30]} 45. Be8 {[%emt 0:00:46]} g5 {[%emt 0:00:29]} 46. Ra7+ {[%emt 0:00:22]} Kh6 {[%emt 0:00:58]} 47. Re7 {[%emt 0:00:41]} f4+ {[%emt 0:00:39]} 48. Kf2 {[%emt 0:00:42]} Re3 {[%emt 0:00:51]} 49. Bd7 {[%emt 0:00:51]} e5 {[%emt 0:00:17]} 50. Bf5 {[%emt 0:00:26]} g4 {[%emt 0:00:38]} 51. Bxg4 {[%emt 0:00:18]} Kg5 {[%emt 0:00:34]} 52. Bf3 {[%emt 0:00:39]} Kf6 {[%emt 0:00:18]} 53. Rh7 {[%emt 0:00:32]} Ra3 {[%emt 0:00:58]} 54. h4 {[%emt 0:00:38]} Ra2+ {[%emt 0:00:14]} 55. Be2 {[%emt 0:00:29]} e4 {[%emt 0:00:21]} 56. h5 {[%emt 0:00:33]} f3 {[%emt 0:00:12]} 57. h6 {[%emt 0:00:31]} Rxe2+ {[%emt 0:00:16]} 58. Kf1 {[%emt 0:00:09]} Rh2 {[%emt 0:00:27]} 59. Rh8 {[%emt 0:00:09]} Kg6 {[%emt 0:01:15]} 60. Rg8+ {[%emt 0:00:45]} Kh7 {[%emt 0:00:14]} 61. Re8 {[%emt 0:00:45]} Rh4 {[%emt 0:00:20]} 62. Kf2 {[%emt 0:00:42]} Kxh6 {[%emt 0:00:12]} 63. Ke3 {[%emt 0:00:21]} Kg5 {[%emt 0:01:48]} 64. Rg8+ {[%emt 0:00:30]} Kf5 {[%emt 0:00:07]} 65. Rf8+ {[%emt 0:00:15]} Ke5 {[%emt 0:00:24]} 66. Re8+ {[%emt 0:00:10]} Kd5 {[%emt 0:00:07]} 67. Rd8+ {[%emt 0:00:11]} Ke6 {[%emt 0:00:27]} 68. Re8+ {[%emt 0:00:12]} Kf5 {[%emt 0:00:06]} 69. Rf8+ {[%emt 0:00:08]} Kg4 {[%emt 0:00:42]} 70. Kxe4 {[%emt 0:01:46]} Rh3 {[%emt 0:01:15]} 71. Rg8+ {[%emt 0:00:33]} Kh5 {[%emt 0:00:10]} 72. Rh8+ {[%emt 0:00:18]} Kg4 {[%emt 0:00:05]} 73. Rxh3 {[%emt 0:00:19]} Kxh3 {[%emt 0:00:30]} 74. Kxf3 {[%emt 0:00:30]} 1/2-1/2

[Event "Austrian Championship Girls-U14 2024"]
[Site "Fuerstenfeld"]
[Date "2024.05.30"]
[Round "2.4"]
[White "Spangl, Marilena"]
[Black "Huber, Elisa"]
[Result "0-1"]
[ECO "C42"]
[WhiteElo "1595"]
[BlackElo "1633"]
[Annotator "NA RC"]
[PlyCount "92"]
[EventDate "2024.05.28"]
[EventType "swiss"]
[EventCountry "AUT"]
[SourceTitle "playchess.com"]
[Source "ChessBase"]
[SourceQuality "1"]
[TimeControl "5400+30"]

1. e4 {[%emt 0:00:02]} e5 {[%emt 0:00:05]} 2. Nf3 {[%emt 0:00:11]} Nf6 {[%emt 0:00:08]} 3. Nxe5 {[%emt 0:00:10]} d6 {[%emt 0:00:11]} 4. Nf3 {[%emt 0:00:14]} Nxe4 {[%emt 0:00:11]} 5. d3 {[%emt 0:00:10]} Nf6 {[%emt 0:00:12]} 6. Qe2+ {[%emt 0:00:09]} Qe7 {[%emt 0:00:20]} 7. Bg5 {[%emt 0:00:16]} Qxe2+ {[%emt 0:00:25]} 8. Bxe2 {[%emt 0:00:15]} Be7 {[%emt 0:00:29]} 9. Nc3 {[%emt 0:00:20]} Bd7 {[%emt 0:02:27]} 10. O-O-O {[%emt 0:00:39]} Nc6 {[%emt 1:31:02]} 11. Rhe1 {[%emt 0:02:13]} O-O-O {[%emt 0:00:00]} 12. Nd2 {[%emt 0:04:14]} Be6 {[%emt 0:00:00]} 13. h3 {[%emt 0:05:57]} h6 {[%emt 0:00:00]} 14. Be3 {[%emt 0:02:49]} d5 {[%emt 0:00:00]} 15. d4 {[%emt 0:06:37]} Bb4 {[%emt 0:00:00]} 16. Na4 {[%emt 0:07:31]} Ne4 {[%emt 0:00:00]} 17. c3 {[%emt 0:05:18]} Nxd2 {[%emt 0:00:00]} 18. Rxd2 {[%emt 0:01:05]} Bd6 {[%emt 0:00:00]} 19. b3 {[%emt 0:01:22]} Ba3+ {[%emt 0:00:00]} 20. Kc2 {[%emt 0:02:16]} Bf5+ {[%emt 0:00:00]} 21. Bd3 {[%emt 0:02:19]} Bxd3+ {[%emt 0:00:00]} 22. Rxd3 {[%emt 0:00:28]} Rde8 {[%emt 0:00:00]} 23. b4 {[%emt 0:01:36]} Bxb4 {[%emt 0:00:00]} 24. cxb4 {[%emt 0:00:30]} Nxb4+ {[%emt 0:00:00]} 25. Kc3 {[%emt 0:01:35]} Nxd3 {[%emt 0:07:30]} 26. Kxd3 {[%emt 0:00:12]} f5 {[%emt 0:00:00]} 27. Nc3 {[%emt 0:01:12]} f4 {[%emt 0:00:00]} 28. Bd2 {[%emt 0:00:18]} Rxe1 {[%emt 0:00:00]} 29. Bxe1 {[%emt 0:00:20]} c6 {[%emt 0:00:00]} 30. Bd2 {[%emt 0:01:07]} g5 {[%emt 0:00:00]} 31. Na4 {[%emt 0:02:33]} b6 {[%emt 0:00:00]} 32. Nb2 {[%emt 0:01:41]} Rf8 {[%emt 0:00:00]} 33. Kc3 {[%emt 0:01:07]} Kc7 {[%emt 0:00:00]} 34. Nd3 {[%emt 0:01:24]} Kd6 {[%emt 0:00:00]} 35. Kc2 {[%emt 0:01:40]} a5 {[%emt 0:00:00]} 36. Ne5 {[%emt 0:01:05]} c5 {[%emt 0:00:00]} 37. Bc3 {[%emt 0:01:18]} Rf5 {[%emt 0:00:00]} 38. a4 {[%emt 0:02:06]} cxd4 {[%emt 0:00:00]} 39. Bxd4 {[%emt 0:00:19]} Rxe5 {[%emt 0:00:00]} 40. Bxe5+ {[%emt 0:00:37]} Kxe5 {[%emt 0:00:00]} 41. Kd3 {[%emt 0:00:16]} d4 {[%emt 0:00:00]} 42. f3 {[%emt 0:01:03]} Kd5 {[%emt 0:00:00]} 43. Kd2 {[%emt 0:00:25]} Kc4 {[%emt 0:00:00]} 44. Kc2 {[%emt 0:00:15]} Kb4 {[%emt 0:00:00]} 45. Kd3 {[%emt 0:00:41]} Kxa4 {[%emt 0:00:00]} 46. Kxd4 {[%emt 0:00:19]} Kb3 {[%emt 0:00:00]} 0-1

[Event "Austrian Championship Girls-U14 2024"]
[Site "Fuerstenfeld"]
[Date "2024.05.31"]
[Round "3.1"]
[White "Brunner, Josephina Akiko"]
[Black "Knittel-Templ, Paula"]
[Result "1/2-1/2"]
[ECO "C28"]
[WhiteElo "1744"]
[BlackElo "1599"]
[Annotator "NA RC"]
[PlyCount "76"]
[EventDate "2024.05.28"]
[EventType "swiss"]
[EventCountry "AUT"]
[SourceTitle "playchess.com"]
[Source "ChessBase"]
[SourceQuality "1"]
[TimeControl "5400+30"]

1. e4 {[%emt 0:00:03]} e5 {[%emt 0:00:12]} 2. Nc3 {[%emt 0:00:11]} Nc6 {[%emt 0:02:51]} 3. Bc4 {[%emt 0:00:15]} Nf6 {[%emt 0:01:11]} 4. d3 {[%emt 0:00:21]} Bb4 {[%emt 0:00:43]} 5. Nge2 {[%emt 0:09:02]} h6 {[%emt 0:01:45]} 6. O-O {[%emt 0:04:50]} O-O {[%emt 0:03:22]} 7. Ng3 {[%emt 0:08:50]} d6 {[%emt 0:02:33]} 8. h3 {[%emt 0:10:03]} a6 {[%emt 0:04:37]} 9. Be3 {[%emt 0:07:54]} Be6 {[%emt 0:04:55]} 10. Bb3 {[%emt 0:15:03]} Bxc3 {[%emt 0:03:13]} 11. bxc3 {[%emt 0:00:04]} Qd7 {[%emt 0:00:14]} 12. Qf3 {[%emt 0:19:07]} Bxb3 {[%emt 0:09:41]} 13. axb3 {[%emt 0:01:01]} d5 {[%emt 0:01:17]} 14. Nf5 {[%emt 0:04:30]} Ne7 {[%emt 0:06:44]} 15. Nxh6+ {[%emt 0:03:05]} gxh6 {[%emt 0:07:13]} 16. Qxf6 {[%emt 0:00:28]} Qe6 {[%emt 0:00:57]} 17. Qxh6 {[%emt 0:00:22]} Qxh6 {[%emt 0:00:09]} 18. Bxh6 {[%emt 0:00:04]} Rfe8 {[%emt 0:00:33]} 19. Bg5 {[%emt 0:00:34]} dxe4 {[%emt 0:00:18]} 20. dxe4 {[%emt 0:00:09]} Ng6 {[%emt 0:00:31]} 21. Rad1 {[%emt 0:00:38]} Nf4 {[%emt 0:00:50]} 22. Bxf4 {[%emt 0:00:51]} exf4 {[%emt 0:00:07]} 23. f3 {[%emt 0:00:52]} Rad8 {[%emt 0:00:15]} 24. Kf2 {[%emt 0:00:11]} b5 {[%emt 0:00:31]} 25. Ke2 {[%emt 0:00:29]} Kg7 {[%emt 0:01:23]} 26. Rd4 {[%emt 0:02:20]} c5 {[%emt 0:47:25]} 27. Rd2 {[%emt 0:00:52]} Rxd2+ {[%emt 0:00:00]} 28. Kxd2 {[%emt 0:00:05]} Rd8+ {[%emt 0:00:00]} 29. Ke2 {[%emt 0:01:23]} a5 {[%emt 0:00:00]} 30. Ra1 {[%emt 0:00:34]} Ra8 {[%emt 0:00:00]} 31. g3 {[%emt 0:02:35]} fxg3 {[%emt 0:00:00]} 32. Rg1 {[%emt 0:00:10]} a4 {[%emt 0:00:00]} 33. Rxg3+ {[%emt 0:00:18]} Kh7 {[%emt 0:00:00]} 34. bxa4 {[%emt 0:00:39]} bxa4 {[%emt 0:00:00]} 35. Rg1 {[%emt 0:00:13]} a3 {[%emt 0:00:00]} 36. Ra1 {[%emt 0:00:09]} a2 {[%emt 0:00:00]} 37. Kd2 {[%emt 0:01:18]} Kh6 {[%emt 0:00:00]} 38. f4 {[%emt 0:02:08]} Kh5 {[%emt 0:00:00]} 1/2-1/2